bitfinex-derivatives/quotes_BTCF0:USTF0_20240923
["timestamp","ask_amount","ask_price","bid_price","bid_amount"]
[1727055859970,0.25921302,63872.0,63871.0,0.026]
[1727055860474,0.12921302,63872.0,63871.0,0.026]
[1727055862872,0.30821302,63872.0,63871.0,0.026]
[1727055864572,0.12921302,63872.0,63871.0,0.026]
[1727055864776,0.12921302,63872.0,63871.0,0.104278]
[1727055864983,0.002,63872.0,63871.0,0.104278]
[1727055865680,0.002,63872.0,63871.0,0.33936602]
[1727055865882,0.002,63872.0,63871.0,0.104278]
[1727055866677,0.132,63872.0,63871.0,0.026]
[1727055867173,0.210277,63872.0,63871.0,0.026]
[1727055867378,0.551377,63872.0,63871.0,0.026]
[1727055868383,0.551377,63872.0,63871.0,0.021]
[1727055868998,0.56403644,63872.0,63871.0,0.021]
[1727055869204,0.56303644,63872.0,63871.0,0.009]
[1727055869507,0.56303644,63872.0,63871.0,0.014]
[1727055872699,0.3421,63872.0,63871.0,0.014]
[1727055872897,0.001,63872.0,63871.0,0.092278]
[1727055873604,0.3608,63880.0,63876.0,0.078272]
[1727055873912,0.3608,63880.0,63871.0,0.144]
[1727055874113,0.3608,63880.0,63879.0,0.078269]
[1727055875809,0.3618,63880.0,63879.0,0.078269]
[1727055876211,0.3608,63880.0,63879.0,0.078269]
[1727055876422,0.3618,63880.0,63879.0,0.090269]
[1727055876709,0.3618,63880.0,63879.0,0.55178247]
[1727055877009,0.001,63880.0,63879.0,0.55178247]
[1727055877217,0.001,63880.0,63879.0,0.56411602]
[1727055877410,0.001,63880.0,63879.0,0.50260255]
[1727055878212,0.3608,63886.0,63881.0,0.078265]
[1727055878811,0.3608,63886.0,63882.0,0.078265]
[1727055879709,0.3608,63886.0,63882.0,0.14000524]
[1727055880303,0.3608,63886.0,63882.0,0.14400524]
[1727055881028,0.3608,63886.0,63882.0,0.06574024]
[1727055881212,0.3608,63886.0,63883.0,0.06174024]
[1727055881406,0.3608,63886.0,63884.0,0.14000224]
[1727055881608,0.3608,63886.0,63884.0,0.078262]
[1727055881808,0.3608,63886.0,63884.0,0.14000224]
[1727055882215,0.3608,63886.0,63884.0,0.078262]
[1727055882816,0.1817,63885.0,63884.0,0.078262]
[1727055883316,0.1817,63885.0,63884.0,0.081262]
[1727055885414,0.1817,63885.0,63884.0,0.25316318]
[1727055885614,0.1817,63885.0,63884.0,0.25316037]
[1727055887217,0.1817,63885.0,63884.0,0.25315765]
[1727055887419,0.1817,63885.0,63884.0,0.15852265]
[1727055887817,0.1817,63885.0,63884.0,0.081262]
[1727055888225,0.1817,63885.0,63884.0,0.15852265]
[1727055888414,0.1817,63885.0,63884.0,0.081262]
[1727055895619,0.4696,63884.0,63878.0,0.07726065]
[1727055895821,0.3608,63879.0,63876.0,0.07726065]
[1727055896026,0.13,63876.0,63874.0,0.07726065]
[1727055896226,0.13,63876.0,63873.0,0.07726065]
[1727055896725,0.13,63876.0,63872.0,0.07726065]
[1727055896915,0.13,63876.0,63871.0,0.4]
[1727055896916,0.13,63876.0,63871.0,0.47726065]
[1727055897116,0.3608,63872.0,63871.0,0.55554665]
[1727055897324,0.3608,63872.0,63871.0,0.64973555]
[1727055897534,0.3608,63872.0,63871.0,0.56805278]
[1727055897928,0.3608,63872.0,63871.0,0.49079213]
[1727055898439,0.3608,63872.0,63870.0,0.07726065]
[1727055898727,0.1788,63871.0,63866.0,0.07740858]
[1727055898929,0.1788,63871.0,63864.0,0.078295]
[1727055898930,0.13,63867.0,63864.0,0.078295]
[1727055899125,0.3608,63865.0,63864.0,0.078295]
[1727055899431,0.3608,63865.0,63864.0,0.478295]
[1727055900021,0.3608,63865.0,63864.0,0.490295]
[1727055900534,0.3608,63865.0,63864.0,0.478295]
[1727055900728,0.3608,63865.0,63864.0,0.479295]
[1727055900924,0.3608,63865.0,63864.0,0.57379667]
[1727055901126,0.3608,63870.0,63864.0,1.06941156]
[1727055901427,0.3608,63870.0,63867.0,0.07742169]
[1727055901819,0.13,63868.0,63867.0,0.07742169]
[1727055902121,0.13,63868.0,63866.0,0.07742169]
[1727055902431,0.3608,63870.0,63865.0,0.07742169]
[1727055902632,0.3608,63870.0,63866.0,0.17146938]
[1727055902931,0.3608,63870.0,63869.0,0.078289]
[1727055903129,0.3608,63870.0,63869.0,0.17227543]
[1727055903728,0.3608,63870.0,63869.0,0.57227543]
[1727055904132,0.7256,63870.0,63869.0,0.4]
[1727055904331,1.32532,63870.0,63869.0,0.4]
[1727055904632,1.32532,63870.0,63867.0,0.002]
[1727055904633,0.078289,63869.0,63867.0,0.002]
[1727055905218,0.46972,63868.0,63866.0,0.003]
[1727055905419,0.208291,63867.0,63866.0,0.133]
[1727055905628,0.208291,63867.0,63858.0,0.15573978]
[1727055905629,0.078294,63865.0,63858.0,0.078301]
[1727055905823,0.8516,63859.0,63858.0,0.078301]
[1727055906027,0.8516,63859.0,63858.0,0.208301]
[1727055906518,0.7216,63859.0,63858.0,0.208301]
[1727055907035,0.7226,63859.0,63858.0,0.216301]
[1727055907617,0.7216,63859.0,63858.0,0.208301]
[1727055907833,0.7216,63859.0,63858.0,0.212301]
[1727055908329,0.7216,63859.0,63858.0,0.223301]
[1727055909125,0.7226,63859.0,63858.0,0.220301]
[1727055910421,0.7226,63859.0,63858.0,0.386801]
[1727055912534,0.7226,63859.0,63858.0,0.688501]
[1727055912731,0.3608,63870.0,63869.0,0.078289]
[1727055913825,0.3678,63870.0,63869.0,0.001]
[1727055914426,0.3708,63870.0,63869.0,0.001]
[1727055916336,0.3708,63870.0,63869.0,0.079289]
[1727055918246,0.3708,63870.0,63869.0,0.01384404]
[1727055918940,0.3708,63870.0,63869.0,0.001]
[1727055920337,0.38362419,63870.0,63869.0,0.001]
[1727055922547,0.38362419,63870.0,63869.0,0.04746239]
[1727055922741,0.55702419,63870.0,63869.0,0.04746239]
[1727055922934,0.73482419,63870.0,63869.0,0.04746239]
[1727055923347,0.73482419,63870.0,63869.0,0.001]
[1727055924146,0.73482419,63870.0,63869.0,0.04745141]
[1727055924147,0.81311119,63870.0,63869.0,0.04745141]
[1727055924443,0.078305,63856.0,63855.0,0.01242457]
[1727055924632,0.078305,63856.0,63853.0,0.078308]
[1727055924633,0.799905,63856.0,63853.0,0.078308]
[1727055924835,0.13,63854.0,63853.0,0.13]
[1727055925051,0.078312,63851.0,63849.0,0.00234888]
[1727055925232,0.4908,63850.0,63849.0,0.00234888]
[1727055925433,0.569112,63850.0,63849.0,0.00234888]
[1727055925644,0.569112,63850.0,63849.0,0.13234888]
[1727055926042,0.4908,63850.0,63849.0,0.13234888]
[1727055926343,0.3618,63850.0,63849.0,0.22466188]
[1727055926531,0.3668,63850.0,63849.0,0.22466188]
[1727055926945,0.31979683,63850.0,63849.0,0.31829355]
[1727055927146,0.31479683,63850.0,63849.0,0.75499936]
[1727055927335,0.32179683,63850.0,63849.0,0.75599936]
[1727055927531,0.32179683,63850.0,63849.0,0.66309355]
[1727055927941,0.32079683,63850.0,63849.0,0.64909355]
[1727055928141,0.32379683,63850.0,63849.0,0.40298055]
[1727055928730,0.32079683,63850.0,63849.0,0.30934888]
[1727055928937,0.31479683,63850.0,63849.0,0.31834888]
[1727055929229,0.32079683,63850.0,63849.0,0.41260191]
[1727055929429,0.007,63850.0,63849.0,0.41260191]
[1727055929635,0.002,63850.0,63849.0,0.51050772]
[1727055929836,0.002,63850.0,63849.0,0.58882072]
[1727055930338,0.001,63850.0,63849.0,0.58782072]
[1727055930537,0.001,63850.0,63849.0,0.49491491]
[1727055930737,0.001,63850.0,63849.0,0.58782072]
[1727055930935,0.3608,63856.0,63853.0,0.078308]
[1727055931533,0.3608,63856.0,63853.0,0.068608]
[1727055932344,0.3608,63856.0,63853.0,0.073608]
[1727055933338,0.3618,63856.0,63853.0,0.080608]
[1727055934048,0.3618,63856.0,63853.0,0.075608]
[1727055934250,0.3628,63856.0,63853.0,0.018]
[1727055934563,0.3628,63856.0,63853.0,0.019]
[1727055935846,0.001,63856.0,63853.0,0.011]
[1727055936048,0.3608,63854.0,63853.0,0.03050674]
[1727055936250,0.3608,63854.0,63853.0,0.12352724]
[1727055936843,0.3608,63854.0,63853.0,0.20183524]
[1727055937349,0.3608,63854.0,63853.0,0.19083524]
[1727055937653,0.3628,63854.0,63853.0,0.10881474]
[1727055938548,0.4928,63854.0,63853.0,0.018]
[1727055938749,0.571107,63854.0,63853.0,0.018]
[1727055939643,1.040947,63854.0,63853.0,0.018]
[1727055939950,0.078316,63847.0,63841.0,0.078323]
[1727055940151,0.4908,63842.0,63841.0,0.078323]
[1727055940546,0.3608,63842.0,63841.0,0.338323]
[1727055940856,0.3608,63842.0,63841.0,0.43177435]
[1727055941157,0.3608,63842.0,63841.0,0.61057435]
[1727055941837,0.3608,63842.0,63841.0,0.59657435]
[1727055942054,0.3618,63854.0,63841.0,2.29178422]
[1727055942252,0.532,63854.0,63847.0,0.078315]
[1727055942548,0.532,63854.0,63848.0,0.078314]
[1727055942741,0.531,63854.0,63849.0,0.078313]
[1727055943454,0.13,63852.0,63847.0,0.003]
[1727055943844,0.13,63852.0,63845.0,0.078318]
[1727055944045,0.13,63852.0,63849.0,0.003]
[1727055944443,0.1722,63854.0,63849.0,0.006]
[1727055944751,0.001,63852.0,63849.0,0.006]
[1727055945446,0.001,63852.0,63847.0,0.081315]
[1727055945953,0.002,63852.0,63847.0,0.081315]
[1727055946544,0.002,63852.0,63848.0,0.078314]
[1727055946856,0.001,63852.0,63848.0,0.078314]
[1727055947041,0.001,63852.0,63847.0,0.01]
[1727055947042,0.002,63852.0,63847.0,0.01]
[1727055947243,0.3608,63848.0,63847.0,0.007]
[1727055947458,0.439114,63848.0,63847.0,0.007]
[1727055947646,0.3608,63848.0,63841.0,0.13]
[1727055947855,0.3608,63842.0,63841.0,0.13]
[1727055949967,0.3618,63848.0,63845.0,0.078317]
[1727055950257,0.3618,63848.0,63841.0,0.09690581]
[1727055950562,0.3608,63848.0,63847.0,0.13]
[1727055951060,0.3618,63848.0,63847.0,0.13]
[1727055951258,0.002,63848.0,63847.0,0.13]
[1727055952555,0.210314,63848.0,63847.0,0.004]
[1727055952947,0.209314,63848.0,63847.0,0.004]
[1727055953149,0.132,63848.0,63847.0,0.011]
[1727055953350,0.002,63848.0,63847.0,0.089316]
[1727055953856,0.002,63848.0,63847.0,0.219316]
[1727055954257,0.002,63848.0,63847.0,0.31269479]
[1727055954557,0.002,63848.0,63847.0,0.29675182]
[1727055954750,0.002,63848.0,63847.0,0.3901614]
[1727055955061,0.3608,63850.0,63847.0,0.23440958]
[1727055955253,0.3608,63850.0,63849.0,0.208313]
[1727055955449,0.3608,63850.0,63849.0,0.30172258]
[1727055955755,0.3608,63850.0,63849.0,0.39462839]
[1727055956058,0.3608,63850.0,63849.0,0.30172258]
[1727055956257,0.3628,63850.0,63849.0,0.30172258]
[1727055956459,0.3628,63850.0,63849.0,0.26459947]
[1727055956654,0.3618,63850.0,63849.0,0.26459947]
[1727055956855,0.3628,63850.0,63849.0,0.26859947]
[1727055957458,0.3628,63850.0,63849.0,0.27559947]
[1727055958865,0.002,63850.0,63849.0,0.18272258]
[1727055961068,0.002,63850.0,63849.0,0.18243335]
[1727055961247,0.002,63850.0,63849.0,0.54323335]
[1727055962962,0.002,63850.0,63849.0,0.55773743]
[1727055963563,0.002,63850.0,63849.0,0.54323335]
[1727055964064,0.002,63850.0,63849.0,0.63605043]
[1727055964565,0.0036,63862.0,63859.0,0.0783]
[1727055964863,0.37597589,63867.0,63861.0,0.14013718]
[1727055965159,0.50597589,63867.0,63861.0,0.14013718]
[1727055965358,0.50693589,63867.0,63861.0,0.06183918]
[1727055965566,0.50693589,63867.0,63862.0,0.06183918]
[1727055966454,0.1949,63864.0,63862.0,0.06183918]
[1727055966855,0.1989,63864.0,63862.0,0.06183918]
[1727055968363,0.1919,63864.0,63862.0,0.06183918]
[1727055968561,0.1919,63864.0,63862.0,0.06283918]
[1727055968562,0.1999,63864.0,63862.0,0.06283918]
[1727055968866,0.1969,63864.0,63862.0,0.06283918]
[1727055969062,0.1929,63864.0,63862.0,0.06183918]
[1727055969456,0.1919,63864.0,63863.0,0.14013518]
[1727055969652,0.1919,63864.0,63863.0,0.078296]
[1727055969653,0.004,63864.0,63863.0,0.078296]
[1727055969857,0.3608,63870.0,63863.0,0.30318747]
[1727055970063,0.1798,63875.0,63868.0,0.20732868]
[1727055970275,0.1798,63875.0,63874.0,0.078283]
[1727055970463,0.1798,63875.0,63874.0,0.15561168]
[1727055970664,0.3608,63881.0,63876.0,0.078279]
[1727055970861,0.3608,63881.0,63878.0,0.06182483]
[1727055971373,0.3608,63881.0,63877.0,0.27010383]
[1727055971665,0.3608,63881.0,63877.0,0.208279]
[1727055971873,0.13,63880.0,63877.0,0.208279]
[1727055972571,0.13,63880.0,63878.0,0.078277]
[1727055972962,0.3608,63881.0,63878.0,0.078277]
[1727055973358,0.003,63880.0,63878.0,0.078277]
[1727055973958,0.003,63880.0,63879.0,0.078276]
[1727055974369,0.003,63880.0,63879.0,0.14001145]
[1727055974569,0.3608,63890.0,63877.0,0.33732868]
[1727055974764,0.1761,63891.0,63887.0,0.078266]
[1727055976267,0.1771,63891.0,63887.0,0.078266]
[1727055977276,0.13,63890.0,63887.0,0.078266]
[1727055977567,0.13,63890.0,63878.0,0.23972691]
[1727055977568,0.0932904,63888.0,63883.0,0.078271]
[1727055977787,0.0932904,63888.0,63884.0,0.07827]
[1727055978164,0.3608,63886.0,63884.0,0.07827]
[1727055979364,0.3608,63886.0,63884.0,0.08027]
[1727055981267,0.3618,63886.0,63884.0,0.08027]
[1727055982467,0.3618,63886.0,63884.0,0.09309934]
[1727055983274,0.001,63886.0,63885.0,0.078269]
[1727055983464,0.0036,63898.0,63892.0,0.07826]
[1727055983665,0.189,63899.0,63895.0,0.078257]
[1727055983865,0.189,63899.0,63891.0,0.3608]
[1727055984072,0.189,63899.0,63895.0,0.078256]
[1727055984275,0.189,63899.0,63891.0,0.3608]
[1727055985168,0.191,63899.0,63894.0,0.078257]
[1727055986980,0.196,63899.0,63894.0,0.078257]
[1727055988173,0.196,63899.0,63895.0,0.078257]
[1727055988477,0.078257,63896.0,63885.0,0.078268]
[1727055988671,0.13,63887.0,63886.0,0.13]
[1727055988873,0.4908,63887.0,63886.0,0.13]
[1727055990371,0.4918,63887.0,63886.0,0.136]
[1727055990577,0.4918,63887.0,63886.0,0.139]
[1727055992811,0.51717245,63887.0,63886.0,0.139]
[1727055993386,0.38717245,63887.0,63886.0,0.139]
[1727055993885,0.3998789,63887.0,63886.0,0.139]
[1727055995673,0.5768789,63887.0,63886.0,0.139]
[1727055996078,0.67021068,63887.0,63886.0,0.139]
[1727055996282,0.5768789,63887.0,63886.0,0.139]
[1727055996586,0.62296416,63887.0,63882.0,0.00234798]
[1727055996887,0.62296416,63887.0,63859.0,0.6173]
[1727055996888,0.10888707,63883.0,63867.0,0.269891]
[1727055997103,0.10888707,63883.0,63868.0,0.13]
[1727055997104,0.30182519,63874.0,63868.0,0.13]
[1727055997279,0.45434119,63869.0,63868.0,0.13]
[1727055997482,0.46446145,63869.0,63868.0,0.13]
[1727055997983,0.55800264,63869.0,63868.0,0.13]
[1727055998291,0.46446845,63869.0,63868.0,0.13]
[1727055998489,0.38617945,63869.0,63868.0,0.13]
[1727055999002,0.38617945,63869.0,63868.0,0.136]
[1727055999003,0.48078176,63869.0,63868.0,0.136]
[1727055999178,0.38717945,63869.0,63868.0,0.136]
[1727055999792,0.3628,63869.0,63868.0,0.146]
[1727055999994,0.3628,63869.0,63868.0,0.20792491]
[1727056000587,0.3628,63869.0,63868.0,0.146]
[1727056001098,0.37553476,63869.0,63868.0,0.146]
[1727056001885,0.37553476,63869.0,63868.0,0.20792491]
[1727056002392,0.37553476,63869.0,63868.0,0.146]
[1727056005686,0.58382376,63869.0,63868.0,0.146]
[1727056008417,1.65354376,63869.0,63868.0,1e-08]
[1727056008613,0.58382376,63869.0,63868.0,1e-08]
[1727056008814,0.37553476,63869.0,63868.0,0.07829001]
[1727056009012,0.3628,63869.0,63868.0,0.07829001]
[1727056011222,0.3628,63869.0,63868.0,1e-08]
[1727056015617,0.002,63869.0,63868.0,1e-08]
[1727056016214,0.002,63869.0,63868.0,0.06192492]
[1727056016524,0.002,63869.0,63868.0,0.01234299]
[1727056018015,0.3628,63869.0,63868.0,0.01234299]
[1727056019724,0.3628,63869.0,63868.0,0.07432977]
[1727056020218,0.3628,63869.0,63868.0,0.01234299]
[1727056022915,0.3628,63869.0,63868.0,0.09063299]
[1727056023116,0.3608,63876.0,63875.0,0.078281]
[1727056023324,0.3608,63876.0,63875.0,0.17396198]
[1727056023519,0.3608,63884.0,63880.0,0.078274]
[1727056023727,0.3608,63884.0,63883.0,0.078272]
[1727056023917,0.3608,63884.0,63883.0,0.25102626]
[1727056024115,0.3608,63884.0,63883.0,0.17351427]
[1727056024518,0.3608,63884.0,63883.0,0.17276878]
[1727056024818,0.3608,63884.0,63870.0,0.3608]
[1727056024819,0.078279,63877.0,63874.0,0.07752651]
[1727056025024,0.4908,63875.0,63872.0,0.07752651]
[1727056025224,0.1787,63874.0,63872.0,0.07752651]
[1727056025422,0.1787,63874.0,63871.0,0.07752651]
[1727056025733,0.078287,63870.0,63867.0,0.07752651]
[1727056025920,0.3608,63868.0,63866.0,0.07752651]
[1727056026119,0.13,63867.0,63866.0,0.07752651]
[1727056026421,0.13,63867.0,63864.0,0.07765932]
[1727056026616,0.4908,63867.0,63863.0,0.07765932]
[1727056026817,0.3608,63867.0,63864.0,0.17351328]
[1727056027024,0.3608,63867.0,63865.0,0.17344009]
[1727056027326,0.37424002,63867.0,63866.0,0.002]
[1727056027925,0.078294,63865.0,63864.0,0.002]
[1727056029538,0.079294,63865.0,63864.0,0.002]
[1727056029919,0.800894,63865.0,63864.0,0.002]
[1727056030139,0.800894,63865.0,63861.0,0.00234885]
[1727056030434,0.13,63863.0,63861.0,0.00234885]
[1727056030832,0.1816,63862.0,63851.0,0.07831]
[1727056031034,0.13,63856.0,63851.0,0.07831]
[1727056031232,0.192,63855.0,63852.0,0.078309]
[1727056031429,0.192,63855.0,63847.0,0.07765932]
[1727056031627,0.192,63855.0,63851.0,0.07831]
[1727056032035,0.192,63855.0,63852.0,0.078309]
[1727056032333,0.3608,63857.0,63852.0,0.078309]
[1727056032334,0.001,63856.0,63855.0,0.078306]
[1727056032839,0.001,63856.0,63855.0,0.439106]
[1727056033535,0.001,63856.0,63855.0,0.53477597]
[1727056033731,0.001,63856.0,63855.0,0.61232971]
[1727056034231,0.002,63856.0,63855.0,0.61332971]
[1727056034632,0.001,63856.0,63855.0,0.61332971]
[1727056034828,0.001,63856.0,63855.0,0.51765974]
[1727056035140,0.001,63856.0,63855.0,0.61324431]
[1727056035635,0.002,63856.0,63855.0,0.61324431]
[1727056035837,0.3608,63864.0,63863.0,0.078296]
[1727056036046,0.3608,63870.0,63866.0,0.078291]
[1727056036233,0.3608,63870.0,63868.0,0.13]
[1727056036837,0.3608,63873.0,63868.0,0.13]
[1727056037338,0.001,63870.0,63868.0,0.13]
[1727056037540,0.001,63870.0,63867.0,0.1841]
[1727056037925,0.003,63870.0,63867.0,0.1841]
[1727056038639,0.003,63870.0,63868.0,0.17280485]
[1727056038942,0.003,63870.0,63868.0,0.07750214]
[1727056039325,0.003,63870.0,63869.0,0.3035442]
[1727056039636,0.3608,63879.0,63873.0,0.078283]
[1727056039942,0.3608,63879.0,63869.0,0.2252552]
[1727056039943,0.1777,63883.0,63879.0,0.078276]
[1727056040326,0.3608,63886.0,63882.0,0.13]
[1727056040527,0.3608,63886.0,63881.0,0.07744991]
[1727056040834,0.3608,63886.0,63879.0,0.33152591]
[1727056041740,0.3608,63886.0,63882.0,0.078272]
[1727056041941,0.3608,63886.0,63883.0,0.078271]
[1727056042155,0.3608,63886.0,63882.0,0.13]
[1727056042326,0.3608,63886.0,63880.0,0.078275]
[1727056042745,0.3648,63886.0,63880.0,0.078275]
[1727056043232,0.3658,63886.0,63880.0,0.078275]
[1727056043439,0.3658,63886.0,63879.0,0.18851686]
[1727056043842,0.3638,63886.0,63879.0,0.18851686]
[1727056044440,0.3658,63886.0,63882.0,0.04638417]
[1727056044942,0.3658,63886.0,63883.0,0.04638417]
[1727056045146,0.07156241,63885.0,63878.0,0.078277]
[1727056045358,0.09357114,63880.0,63878.0,0.0909699]
[1727056045539,0.11894453,63879.0,63878.0,0.0909699]
[1727056045741,0.09357114,63879.0,63878.0,0.0909699]
[1727056046342,0.09357114,63879.0,63867.0,0.13]
[1727056046343,0.02537339,63879.0,63867.0,0.13]
[1727056046543,0.0935638,63876.0,63867.0,0.13]
[1727056046938,0.0935638,63876.0,63869.0,0.23559852]
[1727056047139,0.11893719,63875.0,63869.0,0.23559852]
[1727056047342,0.02537339,63874.0,63869.0,0.23559852]
[1727056047534,0.02537339,63873.0,63869.0,0.23559852]
[1727056047739,0.0935638,63876.0,63869.0,0.23559852]
[1727056047942,0.0945638,63876.0,63872.0,0.078284]
[1727056048233,0.02537526,63875.0,63872.0,0.078284]
[1727056048448,0.001,63874.0,63872.0,0.078284]
[1727056048953,0.02537516,63873.0,63872.0,0.078284]
[1727056049249,0.001,63875.0,63872.0,0.078284]
[1727056049455,0.02637509,63874.0,63872.0,0.078284]
[1727056049642,0.001,63874.0,63872.0,0.078284]
[1727056049949,0.001,63875.0,63872.0,0.078284]
[1727056050247,0.001,63873.0,63872.0,0.083284]
[1727056050457,0.02637485,63873.0,63872.0,0.083284]
[1727056050840,0.001,63873.0,63872.0,0.083284]
[1727056051241,0.001,63874.0,63872.0,0.083284]
[1727056051650,0.001,63873.0,63872.0,0.083284]
[1727056052554,0.002,63874.0,63872.0,0.005]
[1727056052753,0.07218876,63873.0,63860.0,0.00234852]
[1727056052958,0.13,63863.0,63860.0,0.00234852]
[1727056053257,0.078298,63861.0,63860.0,0.00234852]
[1727056053848,0.078298,63861.0,63860.0,0.00734852]
[1727056054339,0.078298,63861.0,63860.0,0.00234852]
[1727056054545,1.149058,63861.0,63860.0,0.00734852]
[1727056054841,1.149058,63861.0,63854.0,0.04639539]
[1727056054842,0.078304,63857.0,63854.0,0.04639539]
[1727056055043,0.3608,63855.0,63853.0,0.04639539]
[1727056055445,0.3608,63855.0,63852.0,0.04639539]
[1727056055745,0.3608,63855.0,63853.0,0.04639539]
[1727056056145,0.3608,63855.0,63852.0,0.04639539]
[1727056056347,0.078311,63851.0,63850.0,0.04640156]
[1727056056652,0.078311,63851.0,63841.0,0.00234941]
[1727056056653,0.078315,63848.0,63844.0,0.04640156]
[1727056056840,0.3608,63845.0,63843.0,0.04640156]
[1727056057041,0.1741,63844.0,63843.0,0.04640156]
[1727056057242,0.1741,63844.0,63841.0,0.04875097]
[1727056058262,0.1741,63844.0,63841.0,0.00234941]
[1727056058751,0.1751,63844.0,63841.0,0.00234941]
[1727056058943,0.1751,63844.0,63841.0,0.04875097]
[1727056059143,0.1751,63844.0,63841.0,0.00234941]
[1727056059350,0.1761,63844.0,63841.0,0.00234941]
[1727056059552,0.3608,63842.0,63841.0,0.00234941]
[1727056060260,0.1761,63844.0,63841.0,0.00234941]
[1727056060557,0.3608,63842.0,63841.0,0.00234941]
[1727056060939,0.3618,63842.0,63841.0,0.00234941]
[1727056061351,0.002,63842.0,63841.0,0.00234941]
[1727056061552,0.571122,63842.0,63841.0,0.00234941]
[1727056062251,0.571122,63842.0,63836.0,0.01229189]
[1727056062252,0.078328,63837.0,63836.0,0.01229189]
[1727056062557,0.078328,63837.0,63827.0,0.12474156]
[1727056062558,0.078332,63834.0,63827.0,0.12474156]
[1727056062757,0.3608,63829.0,63827.0,0.07834]
[1727056062945,0.3059409,63829.0,63827.0,0.07834]
[1727056063140,0.3059409,63829.0,63825.0,0.01282223]
[1727056063141,0.5142789,63829.0,63825.0,0.04640156]
[1727056063348,0.5142789,63829.0,63824.0,0.078343]
[1727056063663,0.5142789,63829.0,63823.0,0.00235015]
[1727056063664,0.3059409,63829.0,63823.0,0.00235015]
[1727056064046,0.3059409,63829.0,63828.0,0.078339]
[1727056064350,0.3059409,63829.0,63823.0,0.00235015]
[1727056065146,0.3059409,63829.0,63824.0,0.078344]
[1727056065351,0.3059409,63829.0,63822.0,0.01234204]
[1727056065352,0.209338,63829.0,63822.0,0.01234204]
[1727056065547,0.131,63829.0,63817.0,0.04640156]
[1727056065963,0.131,63829.0,63816.0,0.28216732]
[1727056066256,0.131,63829.0,63815.0,0.27124418]
[1727056066257,0.13,63824.0,63815.0,0.27124418]
[1727056066460,0.078354,63816.0,63815.0,0.01228918]
[1727056066647,0.4918,63818.0,63802.0,0.40720156]
[1727056066845,0.3608,63818.0,63808.0,0.3608]
[1727056067071,0.3608,63818.0,63810.0,0.13]
[1727056067250,0.3608,63818.0,63815.0,0.078354]
[1727056068372,0.001,63816.0,63815.0,0.078354]
[1727056069161,0.3628,63818.0,63815.0,0.078354]
[1727056069960,0.002,63816.0,63815.0,0.078354]
[1727056070163,0.3608,63825.0,63815.0,0.13]
[1727056070362,0.3608,63825.0,63824.0,0.13]
[1727056070658,0.3608,63825.0,63824.0,0.208344]
[1727056071071,0.3608,63825.0,63821.0,0.078346]
[1727056071364,0.3608,63822.0,63804.0,0.3608]
[1727056071662,0.3608,63816.0,63815.0,0.001]
[1727056072256,0.3608,63816.0,63805.0,0.1727]
[1727056072454,0.3608,63810.0,63805.0,0.1727]
[1727056075061,0.3618,63810.0,63805.0,0.1747]
[1727056075262,0.3628,63810.0,63805.0,0.1747]
[1727056076064,0.002,63810.0,63805.0,0.1747]
[1727056076466,0.002,63810.0,63806.0,0.13]
[1727056076668,0.002,63810.0,63808.0,0.078363]
[1727056076867,0.002,63810.0,63806.0,0.13]
[1727056076868,0.002,63810.0,63809.0,0.078362]
[1727056077166,0.002,63810.0,63806.0,0.13]
[1727056077370,0.002,63810.0,63805.0,0.1747]
[1727056077867,0.002,63810.0,63805.0,0.1737]
[1727056079264,0.13,63806.0,63805.0,0.001]
[1727056080167,0.208366,63806.0,63805.0,0.001]
[1727056080871,0.209366,63806.0,63805.0,0.001]
[1727056081071,0.570166,63806.0,63805.0,0.001]
[1727056081476,0.3618,63806.0,63805.0,0.001]
[1727056081986,0.3628,63806.0,63805.0,0.001]
[1727056082678,0.3628,63806.0,63805.0,0.131]
[1727056082861,0.3628,63806.0,63805.0,0.079367]
[1727056083964,0.3628,63806.0,63805.0,0.001]
[1727056084365,0.801966,63806.0,63805.0,0.001]
[1727056084572,1.151366,63806.0,63805.0,0.001]
[1727056086593,1.073,63806.0,63805.0,0.001]
[1727056086876,0.8976,63806.0,63805.0,0.001]
[1727056087780,1.105966,63806.0,63805.0,0.001]
[1727056090179,0.078369,63804.0,63801.0,0.06179394]
[1727056091177,0.078369,63804.0,63802.0,0.06179394]
[1727056091383,0.080369,63804.0,63802.0,0.06179394]
[1727056091582,0.002,63804.0,63802.0,0.06179394]
[1727056091884,0.89648,63806.0,63805.0,0.078367]
[1727056092081,0.3608,63806.0,63805.0,0.078367]
[1727056092283,0.3644,63817.0,63805.0,0.4573723]
[1727056092477,0.3608,63817.0,63816.0,0.06192956]
[1727056092681,0.3608,63817.0,63813.0,0.07741195]
[1727056092974,0.13,63814.0,63811.0,0.07741195]
[1727056093171,0.13,63814.0,63806.0,0.1871]
[1727056093172,0.13,63814.0,63810.0,0.07741195]
[1727056093374,0.3608,63811.0,63810.0,0.07741195]
[1727056093571,0.3608,63811.0,63810.0,0.17382126]
[1727056094079,0.3608,63811.0,63810.0,0.09640931]
[1727056095175,0.3618,63811.0,63810.0,0.09840931]
[1727056095969,0.3628,63811.0,63810.0,0.09840931]
[1727056096483,0.3628,63811.0,63810.0,0.09851761]
[1727056097774,0.3628,63811.0,63810.0,0.19141195]
[1727056098979,0.3628,63811.0,63810.0,0.19161059]
[1727056100483,0.3628,63811.0,63810.0,0.21360672]
[1727056101085,0.3628,63811.0,63810.0,0.002]
[1727056101285,0.3628,63811.0,63810.0,0.17697294]